bitfinex/quotes_BTCUSD_20251110
["timestamp","ask_amount","ask_price","bid_price","bid_amount"]
[1762788228564,0.09838302,105500.0,105490.0,0.11166285]
[1762788228782,0.09838302,105500.0,105490.0,0.30125428]
[1762788229612,0.09838302,105500.0,105490.0,0.11166285]
[1762788230006,0.09838302,105500.0,105490.0,0.30125428]
[1762788230890,0.09838302,105500.0,105490.0,0.30025428]
[1762788231216,0.10038302,105500.0,105490.0,0.30025428]
[1762788231721,0.09838302,105500.0,105490.0,0.30025428]
[1762788231921,0.09838302,105500.0,105490.0,0.66982208]
[1762788232546,0.09838302,105500.0,105490.0,0.30025428]
[1762788233231,0.09838302,105500.0,105490.0,0.66982208]
[1762788233427,0.09838302,105500.0,105490.0,0.30025428]
[1762788234018,0.00048,105510.0,105500.0,0.18957345]
[1762788234218,0.00048,105510.0,105500.0,0.32366571]
[1762788234751,0.00048,105510.0,105500.0,0.13409226]
[1762788234991,0.00038521,105510.0,105500.0,0.05102]
[1762788235152,0.00038521,105510.0,105500.0,0.24059345]
[1762788236662,0.00038521,105510.0,105500.0,0.05102]
[1762788237167,0.01989521,105510.0,105490.0,0.05928285]
[1762788237372,0.20945211,105510.0,105490.0,0.04635]
[1762788237706,0.01989521,105510.0,105490.0,0.23593935]
[1762788237923,0.00038521,105510.0,105500.0,0.01942]
[1762788238519,0.2094507,105510.0,105490.0,0.04635]
[1762788238805,0.1899407,105510.0,105490.0,0.04635]
[1762788238987,0.1899411,105510.0,105490.0,0.07783554]
[1762788239196,0.1899411,105510.0,105470.0,0.09695352]
[1762788239197,0.06493821,105500.0,105470.0,0.09695352]
[1762788239400,0.24556887,105510.0,105480.0,0.05013094]
[1762788239741,0.18957345,105500.0,105490.0,0.01951]
[1762788239944,0.18957345,105500.0,105490.0,0.03424]
[1762788240358,0.2196546,105510.0,105490.0,0.06541]
[1762788240576,0.18957345,105500.0,105490.0,0.05974159]
[1762788240780,0.18957345,105500.0,105490.0,0.01473]
[1762788240986,0.20932345,105500.0,105490.0,0.01473]
[1762788241190,0.18959244,105490.0,105480.0,0.01473]
[1762788241399,0.2008394,105480.0,105470.0,0.01484084]
[1762788241613,0.01123,105480.0,105470.0,0.03229187]
[1762788241814,0.01123,105480.0,105470.0,0.01484084]
[1762788242015,0.2008394,105480.0,105470.0,0.01484084]
[1762788242222,0.01123,105480.0,105470.0,0.03435084]
[1762788242718,0.01323,105480.0,105470.0,0.03435084]
[1762788242962,0.002,105480.0,105470.0,0.25514822]
[1762788243181,0.002,105480.0,105470.0,0.11147296]
[1762788243595,0.002,105480.0,105470.0,0.30110034]
[1762788245366,0.002,105480.0,105470.0,0.11147296]
[1762788245568,0.002,105480.0,105470.0,0.06552084]
[1762788246200,0.01961847,105480.0,105470.0,0.03435084]
[1762788246450,0.20922787,105480.0,105470.0,0.03435084]
[1762788246649,0.22897787,105480.0,105470.0,0.01484084]
[1762788247059,0.22897787,105480.0,105470.0,9.084e-05]
[1762788247468,0.27512787,105480.0,105470.0,9.084e-05]
[1762788247829,0.59812787,105480.0,105470.0,9.084e-05]
[1762788248028,0.66437789,105480.0,105470.0,9.084e-05]
[1762788248277,0.59812787,105480.0,105470.0,9.084e-05]
[1762788248477,0.55197787,105480.0,105470.0,9.084e-05]
[1762788248690,0.36236847,105480.0,105470.0,0.01482084]
[1762788248818,0.01761847,105480.0,105470.0,0.06550084]
[1762788249018,0.01761847,105480.0,105470.0,0.0910154]
[1762788249235,0.27216608,105480.0,105470.0,9.084e-05]
[1762788249447,0.25412787,105480.0,105470.0,9.084e-05]
[1762788249744,0.59712787,105480.0,105470.0,9.084e-05]
[1762788250784,0.60012787,105480.0,105470.0,9.084e-05]
[1762788252765,0.36436847,105480.0,105470.0,0.01482084]
[1762788253003,0.36436847,105480.0,105470.0,0.05789433]
[1762788253004,0.34461847,105480.0,105470.0,0.05789433]
[1762788253380,0.02161847,105480.0,105470.0,0.29765444]
[1762788253597,0.004,105480.0,105470.0,0.08906433]
[1762788253935,0.004,105480.0,105470.0,0.05789433]
[1762788254134,0.2093594,105480.0,105470.0,0.02365433]
[1762788254389,0.24695848,105480.0,105470.0,9.084e-05]
[1762788254592,0.35423,105490.0,105470.0,0.06550084]
[1762788254796,0.35182604,105490.0,105480.0,0.01951]
[1762788255434,0.01759604,105490.0,105480.0,0.2402894]
[1762788255640,0.01759604,105490.0,105480.0,0.05068]
[1762788255853,0.01759604,105490.0,105480.0,0.26580209]
[1762788256059,0.51257362,105500.0,105480.0,0.07619269]
[1762788256287,0.5301675,105500.0,105480.0,0.05068]
[1762788256457,0.5301675,105500.0,105480.0,0.1896094]
[1762788256458,0.002,105490.0,105480.0,0.1896094]
[1762788256657,0.01759388,105500.0,105470.0,0.26496277]
[1762788256658,0.18957408,105500.0,105470.0,0.26496277]
[1762788256865,0.1996546,105510.0,105490.0,0.01473]
[1762788257065,0.21725267,105510.0,105490.0,0.03711481]
[1762788257250,0.18957345,105500.0,105490.0,0.03711481]
[1762788257445,0.18957345,105500.0,105490.0,0.01473]
[1762788257648,0.2258046,105510.0,105490.0,0.03424]
[1762788257853,0.2434037,105510.0,105490.0,0.03424]
[1762788258196,0.003,105500.0,105490.0,0.03424]
[1762788258393,0.003,105500.0,105490.0,0.25500143]
[1762788258533,0.00062094,105510.0,105490.0,0.2994625]
[1762788258736,0.00062094,105510.0,105500.0,0.01951]
[1762788258737,0.19017643,105510.0,105500.0,0.01951]
[1762788258943,0.01822365,105510.0,105500.0,0.01951]
[1762788259398,0.02122365,105510.0,105500.0,0.01951]
[1762788259599,0.02122365,105510.0,105500.0,0.0192509]
[1762788260034,0.02222365,105510.0,105500.0,0.0192509]
[1762788260376,0.00462094,105510.0,105500.0,0.08034118]
[1762788260548,0.00362094,105510.0,105500.0,0.08034118]
[1762788260903,0.00762094,105510.0,105500.0,0.08034118]
[1762788261501,0.00762094,105510.0,105500.0,0.26991463]
[1762788262440,0.00462094,105510.0,105500.0,0.08034118]
[1762788262622,0.00462094,105510.0,105500.0,0.04917118]
[1762788262822,0.00462094,105510.0,105500.0,0.0192509]
[1762788263227,0.00462094,105510.0,105500.0,0.0202509]
[1762788263595,0.19417643,105510.0,105500.0,0.0202509]
[1762788263795,0.21380643,105510.0,105500.0,0.001]
[1762788264098,0.20980643,105510.0,105500.0,0.001]
[1762788264502,0.27264838,105510.0,105500.0,0.002]
[1762788264703,0.00062094,105510.0,105500.0,0.02295]
[1762788264934,0.00062094,105510.0,105500.0,0.2666102]
[1762788265144,0.00062094,105510.0,105500.0,0.2646102]
[1762788266098,0.00062094,105510.0,105500.0,0.07503675]
[1762788266916,0.19017643,105510.0,105500.0,0.07503675]
[1762788267119,0.00062094,105510.0,105500.0,0.07503675]
[1762788268317,0.19017643,105510.0,105500.0,0.02272675]
[1762788268519,0.19017643,105510.0,105490.0,0.06576352]
[1762788268724,0.18957345,105500.0,105490.0,0.01473]
[1762788268972,0.23541643,105510.0,105490.0,0.01473]
[1762788269157,0.27622673,105500.0,105490.0,0.01473]
[1762788269492,0.18957345,105500.0,105490.0,0.02444235]
[1762788269632,0.18957345,105500.0,105490.0,0.01473]
[1762788269840,0.18957345,105500.0,105470.0,0.09721436]
[1762788269841,0.18959143,105490.0,105470.0,0.09721436]
[1762788270078,0.22920345,105500.0,105480.0,0.03136]
[1762788270278,0.18957345,105500.0,105480.0,0.05231]
[1762788270521,0.20957345,105500.0,105480.0,0.05231]
[1762788270721,0.01123,105490.0,105480.0,0.05172912]
[1762788271129,0.21905212,105500.0,105480.0,0.08308912]
[1762788271253,0.02,105500.0,105490.0,0.01551]
[1762788271453,0.2448942,105510.0,105490.0,0.01551]
[1762788271676,0.001,105500.0,105490.0,0.01551]
[1762788271909,0.19057345,105500.0,105490.0,0.01651]
[1762788272108,0.18957345,105500.0,105490.0,0.03646]
[1762788272470,0.001,105500.0,105490.0,0.03646]
[1762788273125,0.001,105500.0,105490.0,0.06782]
[1762788273531,0.56879168,105480.0,105470.0,9.084e-05]
[1762788273742,0.68188689,105480.0,105470.0,9.084e-05]
[1762788273940,0.77126363,105480.0,105470.0,9.084e-05]
[1762788274198,0.69542532,105480.0,105470.0,9.084e-05]
[1762788274394,0.64128857,105480.0,105470.0,9.084e-05]
[1762788274593,0.70542531,105480.0,105470.0,9.084e-05]
[1762788275008,0.18969932,105430.0,105420.0,0.01630458]
[1762788275214,0.26095783,105430.0,105420.0,0.00088543]
[1762788276403,0.60919783,105430.0,105420.0,0.00088543]
[1762788278786,0.57000183,105400.0,105390.0,0.00087912]
[1762788279767,0.59524183,105400.0,105390.0,0.00087912]
[1762788280802,0.57000183,105400.0,105390.0,0.00087912]
[1762788281362,0.01761851,105400.0,105390.0,0.25847044]
[1762788281530,0.02,105440.0,105420.0,0.18971697]
[1762788281683,0.01748132,105440.0,105430.0,0.03646]
[1762788281890,0.27546374,105450.0,105430.0,0.06782]
[1762788282093,0.2929442,105450.0,105430.0,0.06782]
[1762788282922,0.18968133,105440.0,105430.0,0.06782]
[1762788283150,0.18968133,105440.0,105430.0,0.01551]
[1762788283367,0.18968133,105440.0,105430.0,0.02240652]
[1762788283993,0.29646374,105450.0,105430.0,0.04335652]
[1762788284216,0.31393869,105450.0,105430.0,0.04335652]
[1762788284415,0.31393869,105450.0,105430.0,0.07471652]
[1762788284832,0.01847495,105450.0,105440.0,0.05231]
[1762788284973,0.01747495,105450.0,105440.0,0.07875152]
[1762788285351,0.01747495,105450.0,105440.0,0.04739152]
[1762788285352,0.18966334,105450.0,105440.0,0.04739152]
[1762788285564,0.24676971,105450.0,105430.0,0.01551]
[1762788285770,0.18968133,105440.0,105430.0,0.01551]
[1762788286915,0.03747559,105440.0,105420.0,0.27453189]
[1762788287137,0.2453865,105450.0,105420.0,0.27462278]
[1762788287338,0.26286228,105450.0,105420.0,0.27462278]
[1762788287541,0.26186228,105450.0,105420.0,0.27462278]
[1762788287717,0.001,105440.0,105420.0,0.27462278]
[1762788288348,0.2191465,105450.0,105420.0,0.27462278]
[1762788288552,0.001,105440.0,105430.0,0.24200932]
[1762788288697,0.002,105450.0,105430.0,0.26958653]
[1762788288902,0.002,105450.0,105440.0,0.24199133]
[1762788290049,0.22874582,105470.0,105440.0,0.24199133]
[1762788290202,0.18964609,105460.0,105450.0,0.03646]
[1762788290410,0.20713966,105460.0,105450.0,0.03646]
[1762788290828,0.01749357,105460.0,105450.0,0.03646]
[1762788291104,0.22874582,105470.0,105450.0,0.03646]
[1762788291105,0.24623939,105470.0,105450.0,0.06221008]
[1762788291291,0.24823939,105470.0,105450.0,0.06221008]
[1762788291486,0.54167095,105470.0,105460.0,0.02095]
[1762788291715,0.21667095,105470.0,105460.0,0.02095]
[1762788292079,0.02704357,105470.0,105460.0,0.02095]
[1762788292477,0.01849357,105470.0,105460.0,0.0776933]
[1762788292715,0.20712095,105470.0,105460.0,0.0776933]
[1762788292912,0.01749357,105470.0,105460.0,0.0776933]
[1762788293092,0.01849357,105470.0,105460.0,0.0776933]
[1762788293522,0.20812095,105470.0,105460.0,0.0776933]
[1762788293762,0.18964536,105460.0,105450.0,0.01551]
[1762788294107,0.18966334,105450.0,105440.0,0.04384]
[1762788294312,0.20891536,105460.0,105440.0,0.04384]
[1762788294495,0.20891536,105460.0,105440.0,0.25221041]
[1762788294496,0.01753003,105460.0,105440.0,0.25221041]
[1762788294702,0.20717574,105460.0,105440.0,0.25221041]
[1762788294926,0.20717574,105460.0,105440.0,0.3022025]
[1762788295135,0.20817574,105460.0,105440.0,0.11252209]
[1762788295346,0.20717574,105460.0,105440.0,0.11252209]
[1762788295763,0.20817574,105460.0,105440.0,0.11252209]
[1762788295970,0.01853003,105460.0,105440.0,0.30220245]
[1762788296404,0.01853805,105460.0,105440.0,0.30220245]
[1762788296617,0.19164843,105460.0,105440.0,0.11252209]
[1762788296791,0.20918646,105460.0,105440.0,0.11252209]
[1762788297061,0.20818639,105460.0,105440.0,0.30220313]
[1762788297478,0.01953796,105460.0,105450.0,0.20834334]
[1762788297685,0.01953796,105460.0,105450.0,0.28362699]
[1762788298101,0.002,105460.0,105450.0,0.28362699]
[1762788298349,0.001,105460.0,105450.0,0.28362699]
[1762788298509,0.323,105480.0,105460.0,0.18963516]
[1762788298710,0.20731191,105480.0,105470.0,0.03395]
[1762788300077,0.02,105470.0,105450.0,0.01527]
[1762788300276,0.19881536,105460.0,105450.0,0.01527]
[1762788300480,0.19881536,105460.0,105440.0,0.01542]
[1762788300481,0.23681437,105460.0,105440.0,0.01542]
[1762788300686,0.18966334,105450.0,105440.0,0.01542]
[1762788300898,0.01755901,105450.0,105440.0,0.01542]
[1762788301096,0.18966334,105450.0,105440.0,0.08644586]
[1762788301235,0.20722235,105450.0,105440.0,0.08644586]
[1762788301873,0.01755901,105450.0,105440.0,0.06304]
[1762788302041,0.01755901,105450.0,105440.0,0.27168946]
[1762788302251,0.001,105460.0,105450.0,0.18966334]
[1762788302466,0.001,105460.0,105450.0,0.25255334]
[1762788302899,0.0001435,105480.0,105470.0,0.18962738]
[1762788303072,0.01771465,105480.0,105470.0,0.24254012]
[1762788303239,0.0001435,105480.0,105470.0,0.6402928]
[1762788304354,0.0001435,105480.0,105470.0,0.6422928]
[1762788304733,0.0001435,105480.0,105470.0,0.6402928]
[1762788304937,0.0001435,105480.0,105470.0,0.27148012]
[1762788305699,0.0001435,105480.0,105470.0,0.27248012]
[1762788306128,0.0001435,105480.0,105470.0,0.27548012]
[1762788306378,0.0001435,105480.0,105470.0,0.27848012]
[1762788307545,0.00062094,105510.0,105500.0,0.55838613]
[1762788307760,1.69061669,105520.0,105510.0,0.51255549]
[1762788307969,1.67764587,105520.0,105510.0,0.97212045]
[1762788308195,1.6601003,105520.0,105510.0,0.97212045]
[1762788309205,1.6601003,105520.0,105510.0,0.97512045]
[1762788309422,1.6601003,105520.0,105510.0,1.07322218]
[1762788311998,1.6601003,105520.0,105510.0,1.07522218]
[1762788313444,1.660336,105520.0,105510.0,1.1453004]
[1762788316691,1.226096,105520.0,105510.0,1.1453004]
[1762788320560,1.226096,105520.0,105510.0,0.77648772]
[1762788320760,1.226096,105520.0,105510.0,1.1453004]
[1762788321735,1.226096,105520.0,105510.0,0.77648772]
[1762788322105,1.226096,105520.0,105510.0,1.1453004]
[1762788325215,1.226096,105520.0,105510.0,0.48067173]
[1762788325413,1.226096,105520.0,105510.0,0.24912549]
[1762788325840,1.226096,105520.0,105510.0,0.6859973]
[1762788326221,1.226096,105520.0,105510.0,0.6869973]
[1762788326520,1.226096,105520.0,105510.0,1.0099973]
[1762788328131,1.226096,105520.0,105510.0,1.04617958]
[1762788328354,1.226096,105520.0,105510.0,1.14428131]
[1762788328510,1.226096,105520.0,105510.0,1.14228131]
[1762788329145,1.226096,105520.0,105510.0,0.77346863]
[1762788329341,1.226096,105520.0,105510.0,1.14228131]
[1762788329544,1.226096,105520.0,105510.0,0.73728635]
[1762788329931,1.226096,105520.0,105510.0,0.34322722]
[1762788330133,1.24365539,105520.0,105510.0,0.34522722]
[1762788331016,1.226096,105520.0,105510.0,0.34522722]
[1762788331289,1.226096,105520.0,105510.0,0.7140399]
[1762788331637,1.226096,105520.0,105510.0,1.0370399]
[1762788332044,1.226096,105520.0,105510.0,0.66822722]
[1762788332359,1.2437064,105520.0,105510.0,0.66822722]
[1762788332947,1.2437064,105520.0,105510.0,0.34522722]
[1762788333387,1.2437064,105520.0,105510.0,0.15567173]
[1762788333580,1.2437064,105520.0,105510.0,0.05757]
[1762788333990,1.2437064,105520.0,105510.0,0.24712549]
[1762788336208,1.2437064,105520.0,105510.0,0.05757]
[1762788336417,1.2437064,105520.0,105510.0,0.24712549]
[1762788337941,1.2437064,105520.0,105510.0,0.70173826]
[1762788338154,1.2437064,105520.0,105510.0,0.79983999]
[1762788338557,1.2437064,105520.0,105510.0,0.34522722]
[1762788338763,1.2437064,105520.0,105510.0,0.7140399]
[1762788338966,1.2437064,105520.0,105510.0,0.34522722]
[1762788340978,1.2437064,105520.0,105510.0,0.15567173]
[1762788341202,1.2437064,105520.0,105510.0,0.003]
[1762788341203,1.49463693,105520.0,105510.0,0.003]
[1762788341422,1.90055005,105520.0,105510.0,0.003]
[1762788341641,0.18959143,105490.0,105480.0,0.01516]
[1762788341855,0.1896094,105480.0,105470.0,0.03423274]
[1762788342024,0.2285398,105480.0,105460.0,0.04598]
[1762788342255,0.20502738,105470.0,105460.0,0.01516]
[1762788342456,0.20502738,105470.0,105450.0,0.01527]
[1762788342457,0.27519778,105470.0,105450.0,0.01527]
[1762788343059,0.0544211,105470.0,105450.0,0.23575286]
[1762788343294,0.0331011,105470.0,105450.0,0.23575286]
[1762788343529,0.0331011,105470.0,105460.0,0.18964536]
[1762788343759,0.0177011,105470.0,105460.0,0.24061536]
[1762788345373,9.07e-05,105470.0,105460.0,0.24061536]
[1762788346183,0.0010907,105470.0,105460.0,0.24061536]
[1762788346604,0.0010907,105470.0,105460.0,1.05441041]
[1762788346805,0.0009307,105470.0,105460.0,1.15251214]
[1762788347044,0.0009307,105470.0,105460.0,1.16251213]
[1762788347271,0.20495683,105510.0,105480.0,0.18959157]
[1762788347481,0.22251923,105510.0,105490.0,0.18959134]
[1762788347683,0.0329624,105510.0,105490.0,0.23557066]
[1762788347860,0.0175624,105510.0,105500.0,0.24054345]
[1762788348738,0.0175624,105510.0,105500.0,0.05097]
[1762788348937,0.0175624,105510.0,105500.0,0.24054345]
[1762788349139,0.0185624,105510.0,105500.0,0.24054345]
[1762788349350,0.0175624,105510.0,105500.0,0.28941929]
[1762788349728,0.20811789,105510.0,105500.0,0.09984584]
[1762788350008,0.0185624,105510.0,105500.0,0.06902584]
[1762788350153,0.0185624,105510.0,105500.0,0.25859929]
[1762788350352,0.0185624,105510.0,105500.0,0.09984584]
[1762788350577,0.0225624,105510.0,105500.0,0.06902584]
[1762788350779,0.18957345,105500.0,105490.0,0.01516]
[1762788350978,0.01756683,105500.0,105490.0,0.01516]
[1762788351383,0.20714028,105500.0,105490.0,0.01516]
[1762788351795,0.18959143,105490.0,105480.0,0.01516]
[1762788351967,0.18959143,105490.0,105480.0,0.04081968]
[1762788352175,0.24124283,105490.0,105470.0,0.04236]
[1762788352372,0.1896094,105480.0,105470.0,0.01154]
[1762788352579,0.2071708,105480.0,105470.0,0.01154]
[1762788353720,0.2071708,105480.0,105460.0,0.02911]
[1762788353924,0.2071708,105480.0,105460.0,0.0292535]
[1762788354325,0.2081708,105480.0,105460.0,0.05362045]
[1762788354924,0.2071708,105480.0,105460.0,0.24326373]
[1762788355136,0.2071708,105480.0,105460.0,0.24326322]
[1762788355441,0.2081708,105480.0,105460.0,0.24326322]
[1762788355641,0.2071708,105480.0,105460.0,0.24326322]
[1762788356059,0.20717103,105480.0,105460.0,0.24326322]
[1762788356190,0.20717103,105480.0,105470.0,0.00973]
[1762788356413,0.18962738,105470.0,105460.0,0.05362045]
[1762788356812,0.19060963,105480.0,105460.0,0.07429045]
[1762788357043,0.20715846,105480.0,105460.0,0.26393493]
[1762788357244,0.01754757,105480.0,105470.0,0.21994738]
[1762788357497,0.01854757,105480.0,105470.0,0.10441023]
[1762788357756,0.01854757,105480.0,105470.0,0.29403761]
[1762788358654,0.001,105480.0,105470.0,0.29403761]
[1762788359775,0.001,105480.0,105470.0,0.10441023]
[1762788360019,0.001,105480.0,105470.0,0.29403761]
[1762788360530,0.001,105480.0,105470.0,0.66285029]
[1762788360731,0.001,105480.0,105470.0,0.10441023]
[1762788360944,0.001,105480.0,105470.0,0.061]
[1762788361355,0.1896094,105480.0,105470.0,0.061]
[1762788361580,0.1896094,105480.0,105470.0,0.00965]
[1762788362417,0.2086994,105480.0,105470.0,0.00965]
[1762788362636,0.22626049,105480.0,105470.0,0.00965]
[1762788363013,0.20717049,105480.0,105470.0,0.00965]
[1762788363878,0.20817049,105480.0,105470.0,0.00965]
[1762788364377,0.18962738,105470.0,105460.0,0.0001435]
[1762788364586,0.27118847,105470.0,105460.0,0.0001435]
[1762788365572,0.29118847,105470.0,105460.0,0.0001435]
[1762788365816,0.01756109,105470.0,105460.0,0.0514935]
[1762788366025,0.26360117,105490.0,105460.0,0.24113886]
[1762788366224,0.28115797,105490.0,105470.0,0.06128]
[1762788366446,0.60415797,105490.0,105470.0,0.06128]
[1762788366650,0.1896094,105480.0,105470.0,0.0306]
[1762788366857,0.0175568,105480.0,105470.0,0.04061]
[1762788367067,0.55362797,105490.0,105470.0,0.25090738]
[1762788367274,0.22773761,105480.0,105470.0,0.04942064]
[1762788367483,0.18962738,105470.0,105460.0,0.04417191]
[1762788367694,0.20718418,105470.0,105460.0,0.0001435]
[1762788367904,0.22156418,105470.0,105460.0,0.0001435]
[1762788368310,0.27118418,105470.0,105460.0,0.0001435]
[1762788368532,0.61418418,105470.0,105460.0,0.0001435]
[1762788368747,0.73616655,105470.0,105460.0,0.0001435]
[1762788368955,0.76672982,105470.0,105460.0,0.0001435]
[1762788369156,0.73616655,105470.0,105460.0,0.0001435]
[1762788369574,0.69998427,105470.0,105460.0,0.0001435]
[1762788369790,0.45982689,105470.0,105460.0,0.0001435]
[1762788369999,0.0175568,105470.0,105460.0,0.24113886]
[1762788370219,0.55607117,105490.0,105470.0,0.18962709]
[1762788370437,0.55607117,105490.0,105460.0,0.255039]
[1762788370438,0.001,105470.0,105460.0,0.255039]
[1762788370843,0.02158303,105470.0,105460.0,0.255039]
[1762788371030,0.02158303,105470.0,105460.0,0.09607364]
[1762788371240,0.02058303,105470.0,105460.0,0.285719]
[1762788371453,0.02058303,105470.0,105460.0,0.286719]
[1762788371649,0.21021041,105470.0,105460.0,0.09707364]
[1762788371873,0.22459041,105470.0,105460.0,0.04572364]
[1762788372052,0.22459041,105470.0,105460.0,0.0011435]
[1762788372285,0.24368041,105470.0,105460.0,0.0011435]
[1762788372731,0.22459041,105470.0,105460.0,0.0011435]
[1762788372866,0.22159041,105470.0,105460.0,0.0011435]
[1762788373066,0.03196303,105470.0,105460.0,0.0011435]
[1762788373271,0.01758303,105470.0,105460.0,0.24213886]
[1762788373474,0.2071939,105480.0,105460.0,0.0514935]
[1762788373674,0.18962738,105470.0,105460.0,0.07710886]
[1762788373877,0.24168041,105470.0,105460.0,0.0001435]
[1762788374064,0.61521041,105470.0,105460.0,0.0001435]
[1762788374264,0.61421041,105470.0,105460.0,0.0001435]
[1762788375005,0.54459041,105470.0,105460.0,0.0001435]
[1762788375566,0.03196303,105470.0,105460.0,0.0001435]
[1762788375742,0.20721041,105470.0,105460.0,0.0208135]
[1762788376051,0.20721041,105470.0,105460.0,0.077109]
[1762788376268,0.01758303,105470.0,105460.0,0.26675436]
[1762788376481,0.20719708,105480.0,105460.0,0.26675436]
[1762788376652,0.19062738,105470.0,105460.0,0.077109]
[1762788376859,0.01858303,105470.0,105460.0,0.046429]
[1762788377071,0.01858303,105470.0,105460.0,0.26675436]
[1762788380292,0.01758303,105470.0,105460.0,0.26675436]
[1762788380494,0.2753739,105500.0,105480.0,0.18960086]
[1762788380708,0.01764746,105500.0,105490.0,0.03418]
[1762788380913,0.18959143,105490.0,105480.0,0.03886868]
[1762788381123,0.1896094,105480.0,105460.0,0.174259]
[1762788381323,0.01764746,105480.0,105470.0,0.015]
[1762788381731,0.20725686,105480.0,105470.0,0.015]
[1762788381935,0.01764746,105480.0,105470.0,0.06488]
[1762788382138,0.01764746,105480.0,105470.0,0.25450738]
[1762788382381,0.01764746,105480.0,105470.0,0.31624852]
[1762788383530,0.01764746,105480.0,105470.0,0.12662114]
[1762788383775,0.01764746,105480.0,105470.0,0.31624852]
[1762788383984,0.01964746,105480.0,105470.0,0.70733853]
[1762788384406,0.01964746,105480.0,105470.0,1.20639465]
[1762788384407,0.002,105480.0,105470.0,1.20639465]
[1762788384606,0.19903385,105510.0,105490.0,0.18959116]
[1762788384811,0.2166848,105510.0,105490.0,0.22750973]
[1762788385014,0.2166848,105510.0,105490.0,0.03791857]
[1762788385216,0.2166848,105510.0,105490.0,0.06712857]
[1762788385628,0.2166848,105510.0,105490.0,0.25671951]
[1762788385836,0.2166848,105510.0,105490.0,0.06712857]
[1762788386035,0.2301648,105510.0,105490.0,0.06712857]
[1762788386440,0.2166848,105510.0,105500.0,0.04936]
[1762788386641,0.2166848,105510.0,105500.0,0.07704685]
[1762788386849,0.2196848,105510.0,105500.0,0.07704685]
[1762788387508,0.20720644,105510.0,105500.0,0.07704685]
[1762788387912,0.21020644,105510.0,105500.0,0.07704685]
[1762788388120,0.02065095,105510.0,105500.0,0.07704685]
[1762788388329,0.21020644,105510.0,105500.0,0.07704685]
[1762788388733,0.21220644,105510.0,105500.0,0.07704685]
[1762788389330,0.21020644,105510.0,105500.0,0.07704685]
[1762788390296,0.20720644,105510.0,105500.0,0.07704685]
[1762788390719,0.01765095,105510.0,105500.0,0.2666203]
[1762788391127,1.22595239,105520.0,105510.0,0.18955549]
[1762788391260,0.001,105510.0,105500.0,0.06439685]
[1762788391466,0.2095937,105510.0,105500.0,0.03518685]
[1762788391696,0.22223549,105510.0,105500.0,0.0075]
[1762788391856,0.22223549,105510.0,105490.0,0.06712857]
[1762788391857,0.18957345,105500.0,105490.0,0.05286857]
[1762788392298,0.01760854,105500.0,105490.0,0.10222857]
[1762788392503,0.18957345,105500.0,105490.0,0.07301857]
[1762788392702,0.22322549,105510.0,105490.0,0.10222857]
[1762788393054,0.18957345,105500.0,105490.0,0.10222857]
[1762788393292,0.18957345,105500.0,105490.0,0.05386857]
[1762788393515,0.27613944,105500.0,105490.0,0.001]
[1762788393937,0.01760599,105500.0,105490.0,0.24858143]
[1762788394354,0.18955549,105510.0,105490.0,0.24858143]
[1762788394569,1.74810371,105520.0,105500.0,0.02015]
[1762788394786,1.76570981,105520.0,105500.0,0.23893345]
[1762788394972,1.44270981,105520.0,105510.0,0.01495]
[1762788395553,0.18957345,105500.0,105490.0,0.00963]
[1762788395806,0.20858345,105500.0,105490.0,0.001]
[1762788395925,0.20717642,105500.0,105490.0,0.00963]
[1762788396376,0.22618642,105500.0,105490.0,0.001]
[1762788396573,0.27613642,105500.0,105490.0,0.001]
[1762788397012,0.1896094,105480.0,105470.0,0.04421]
[1762788397199,0.1896094,105480.0,105470.0,0.10084349]
[1762788397397,0.1896094,105480.0,105470.0,0.12099349]
[1762788397822,0.20379756,105490.0,105470.0,0.06436]
[1762788397960,0.1896094,105480.0,105470.0,0.06436]
[1762788398371,0.1896094,105480.0,105470.0,0.06636]
[1762788398978,0.1896094,105480.0,105470.0,0.03715]
[1762788399415,0.20379756,105490.0,105470.0,0.25598715]
[1762788399646,0.22140272,105490.0,105480.0,0.02015]
[1762788399850,0.21905212,105500.0,105480.0,0.2389694]
[1762788400067,0.18959143,105490.0,105480.0,0.04936]
[1762788400265,0.19905212,105500.0,105480.0,0.04936]
[1762788400690,0.18959143,105490.0,105480.0,0.04936]
[1762788400892,0.18959143,105490.0,105480.0,0.06045232]
[1762788401449,0.20378143,105490.0,105480.0,0.01109232]
[1762788401664,0.22279143,105490.0,105480.0,0.01109232]
[1762788402011,0.20378143,105490.0,105480.0,0.03124232]
[1762788402212,0.18959143,105490.0,105480.0,0.06045232]
[1762788402424,0.22279143,105490.0,105480.0,0.01109232]
[1762788402669,0.22279143,105490.0,105470.0,0.23383706]
[1762788402906,0.20378143,105490.0,105480.0,0.04936]
[1762788403391,0.20378143,105490.0,105480.0,0.02015]
[1762788403521,0.20378143,105490.0,105470.0,0.015]
[1762788403522,0.1896094,105480.0,105470.0,0.015]
[1762788403867,0.1896094,105480.0,105470.0,0.04421]
[1762788404026,0.1896094,105480.0,105470.0,0.06436]
[1762788404452,0.1896094,105480.0,105470.0,0.07530054]
[1762788404658,0.1896094,105480.0,105470.0,0.05515054]
[1762788404834,0.18962738,105470.0,105460.0,0.04416]
[1762788405034,0.18962738,105470.0,105460.0,0.0150935]
[1762788405236,0.18961042,105480.0,105460.0,0.25409787]
[1762788405421,0.18961042,105480.0,105460.0,0.25409754]
[1762788405628,0.18961042,105480.0,105470.0,0.02015]
[1762788405847,0.1896094,105480.0,105470.0,0.02015]
[1762788406055,0.18962738,105470.0,105460.0,0.0001435]
[1762788406219,0.27203738,105470.0,105460.0,0.0001435]
[1762788406634,0.28967523,105470.0,105460.0,0.0031435]
[1762788407073,0.28967523,105470.0,105460.0,0.0001435]
[1762788407404,0.26967523,105470.0,105460.0,0.0001435]
[1762788407597,0.27067523,105470.0,105460.0,0.0001435]
[1762788408713,0.67947532,105470.0,105460.0,0.0001435]
[1762788408862,0.76261899,105470.0,105460.0,0.0001435]
[1762788409073,0.7356576,105470.0,105460.0,0.0001435]
[1762788409840,0.7346576,105470.0,105460.0,0.0001435]
[1762788410256,0.7196576,105470.0,105460.0,0.0001435]
[1762788410431,0.7396576,105470.0,105460.0,0.0001435]
[1762788410842,0.67352532,105470.0,105460.0,0.0001435]
[1762788411020,0.70347532,105470.0,105460.0,0.0001435]
[1762788412445,0.70345246,105470.0,105460.0,0.0001435]
[1762788415368,0.73963474,105470.0,105460.0,0.0001435]
[1762788415574,0.83525529,105470.0,105460.0,0.0001435]
[1762788415745,0.73963474,105470.0,105460.0,0.0001435]
[1762788416107,0.76659613,105470.0,105460.0,0.0001435]
[1762788416631,0.79702158,105470.0,105460.0,0.0001435]
[1762788416830,0.76659613,105470.0,105460.0,0.0001435]
[1762788417032,0.73963474,105470.0,105460.0,0.0001435]